bitfinex-derivatives/quotes_SOLF0:USTF0_20251006
["timestamp","ask_amount","ask_price","bid_price","bid_amount"]
[1759766889140,3.8215,235.39,235.3,9.49884951]
[1759766889738,3.8215,235.39,235.3,7.56]
[1759766890236,0.03252221,235.37,235.3,7.56]
[1759766891337,102.62,235.36,235.31,1.93884951]
[1759766891638,102.62,235.36,235.32,7.56]
[1759766892228,102.62,235.36,235.27,13.32224951]
[1759766892437,102.62,235.36,235.27,9.49884951]
[1759766892637,102.62,235.36,235.23,9.49884951]
[1759766892839,102.62,235.36,235.23,7.56]
[1759766892840,1.93884951,235.34,235.23,7.56]
[1759766893039,5.76114951,235.34,235.23,9.49884951]
[1759766893633,3.8226,235.33,235.23,9.49884951]
[1759766893838,0.02769331,235.31,235.23,9.49884951]
[1759766894136,0.02769331,235.31,235.23,7.56]
[1759766894336,1.93884951,235.29,235.18,1.93884951]
[1759766894542,1.93884951,235.29,235.19,7.56]
[1759766894543,105.06,235.28,235.19,7.56]
[1759766894938,108.8833,235.28,235.19,7.56]
[1759766895441,0.02803236,235.26,235.19,7.56]
[1759766896239,105.08,235.25,235.19,7.56]
[1759766897043,105.08,235.24,235.16,7.56]
[1759766897246,105.08,235.24,235.15,3.52798434]
[1759766897434,105.08,235.24,235.12,3.52798434]
[1759766898141,105.08,235.24,235.11,11.08798434]
[1759766898341,105.08,235.24,235.12,7.3]
[1759766898539,0.02995481,235.2,235.12,11.1259]
[1759766898739,0.02995481,235.2,235.11,3.52798434]
[1759766898740,0.02995481,235.2,235.14,3.0359869]
[1759766898939,0.02995481,235.2,235.16,3.0359869]
[1759766899141,0.02995481,235.2,235.17,7.3]
[1759766899346,0.02995481,235.2,235.11,7.3]
[1759766899743,105.1,235.19,235.11,7.3]
[1759766899938,0.02995481,235.2,235.11,7.3]
[1759766900343,21.62,235.19,235.11,7.3]
[1759766902553,0.02995481,235.2,235.13,7.3]
[1759766902744,43.8,235.19,235.13,7.3]
[1759766902944,43.8,235.19,235.12,3.8259]
[1759766903247,43.8,235.19,235.09,7.3]
[1759766903949,46.8359869,235.19,235.09,7.3]
[1759766904551,3.8249,235.18,235.09,7.3]
[1759766905151,3.06594171,235.2,235.09,7.3]
[1759766905459,105.34,235.17,235.09,7.3]
[1759766905649,0.02995481,235.2,235.03,7.3]
[1759766905850,0.02995481,235.2,235.05,7.3]
[1759766905851,105.34,235.19,235.05,7.3]
[1759766906159,105.34,235.19,235.06,59.5297]
[1759766906351,105.34,235.19,235.07,7.3]
[1759766906552,105.34,235.19,235.08,3.0359869]
[1759766906749,0.02908052,235.14,235.1,7.3]
[1759766907456,105.4,235.2,235.09,59.5213]
[1759766907457,105.4,235.2,235.16,7.3]
[1759766907752,105.4,235.2,235.07,7.3]
[1759766907954,0.03039039,235.14,235.12,7.3]
[1759766908554,0.03039039,235.14,235.11,3.826]
[1759766908950,0.03039039,235.14,235.12,7.3]
[1759766909156,0.03039039,235.14,235.13,11.1257]
[1759766910158,0.03039039,235.14,235.13,7.3]
[1759766912658,0.03039039,235.14,235.07,11.1265]
[1759766913361,0.03039039,235.14,235.07,7.3]
[1759766913962,0.03039039,235.14,235.08,3.8265]
[1759766914358,0.03039039,235.14,235.07,7.3]
[1759766914566,105.97039039,235.14,235.07,7.3]
[1759766914859,105.97039039,235.14,235.09,3.8262]
[1759766915052,105.97039039,235.14,235.1,7.3]
[1759766915562,105.97039039,235.14,235.1,3.8261]
[1759766915864,105.97039039,235.14,235.11,7.64]
[1759766916068,105.97039039,235.14,235.07,3.8266]
[1759766917756,0.03039039,235.14,235.08,7.64]
[1759766917958,105.91039039,235.14,235.08,7.64]
[1759766920470,109.73609039,235.14,235.04,3.827]
[1759766920665,109.73609039,235.14,235.03,7.64]
[1759766921772,0.03039039,235.14,235.03,7.64]
[1759766921969,0.03039039,235.14,235.06,7.64]
[1759766922171,41.93039039,235.14,235.06,7.64]
[1759766922371,41.93039039,235.14,235.11,3.8259]
[1759766922567,41.93039039,235.14,235.11,11.4659]
[1759766923668,41.93039039,235.14,235.09,11.4664]
[1759766924275,0.03039039,235.14,235.09,11.4664]
[1759766924473,0.03039039,235.14,235.11,7.64]
[1759766925171,0.03039039,235.14,235.08,3.8265]
[1759766925571,0.03039039,235.14,235.07,7.64]
[1759766926373,0.03039039,235.14,235.09,3.8262]
[1759766926678,0.03039039,235.14,235.06,7.64]
[1759766926871,0.03039039,235.14,235.02,62.5735869]
[1759766927276,0.03039039,235.14,235.02,59.5376]
[1759766927577,0.03039039,235.14,235.07,3.8267]
[1759766927973,105.74,235.13,235.07,7.18]
[1759766928376,0.03039039,235.14,235.11,7.18]
[1759766929180,0.03039039,235.14,235.11,11.0059]
[1759766930476,0.03039039,235.14,235.13,11.0057]
[1759766934680,105.64,235.21,235.15,7.18]
[1759766935277,105.64,235.21,235.15,10.73620969]
[1759766935675,105.64,235.21,235.19,11.0047]
[1759766935877,105.64,235.21,235.19,7.18]
[1759766936085,105.64,235.21,235.16,7.20832083]
[1759766936283,105.64,235.21,235.17,7.18]
[1759766936485,105.64,235.21,235.16,0.02832083]
[1759766936987,3.0359869,235.22,235.16,0.02832083]
[1759766937285,105.64,235.21,235.16,0.02832083]
[1759766937688,105.64,235.21,235.17,3.8251]
[1759766937884,309.44,235.23,235.17,3.8251]
[1759766938084,105.62,235.22,235.17,7.18]
[1759766938383,309.44,235.23,235.16,0.02832083]
[1759766938384,105.62,235.21,235.19,11.0047]
[1759766938583,309.44,235.23,235.16,3.58453052]
[1759766938584,309.44,235.23,235.18,3.55620969]
[1759766938790,309.44,235.23,235.21,7.18]
[1759766939087,309.44,235.23,235.2,3.55620969]
[1759766939388,105.66,235.24,235.23,7.18]
[1759766939581,105.66,235.24,235.23,10.73620969]
[1759766939782,105.66,235.24,235.22,7.38050969]
[1759766939987,105.66,235.24,235.21,3.55620969]
[1759766940386,105.66,235.24,235.2,3.55620969]
[1759766940585,105.66,235.24,235.21,0.02963253]
[1759766942287,3.0359869,235.23,235.16,3.55620969]
[1759766942488,3.0359869,235.23,235.13,3.55620969]
[1759766942684,3.0359869,235.23,235.12,3.55620969]
[1759766942880,3.8247,235.2,235.11,3.55620969]
[1759766943489,3.0359869,235.22,235.11,3.55620969]
[1759766943883,0.03246347,235.18,235.11,3.55620969]
[1759766944088,105.74,235.17,235.11,3.55620969]
[1759766944587,105.74,235.17,235.11,7.38210969]
[1759766944788,105.74,235.17,235.11,3.55620969]
[1759766944981,105.74,235.17,235.09,3.55620969]
[1759766945787,109.5652,235.17,235.08,3.55620969]
[1759766946192,0.02906537,235.15,235.08,3.55620969]
[1759766946787,0.02906537,235.15,235.07,3.55620969]
[1759766947591,0.02906537,235.15,235.07,7.38280969]
[1759766947994,3.0359869,235.14,235.07,3.55620969]
[1759766948195,3.0359869,235.14,235.04,3.55620969]
[1759766948491,3.0359869,235.14,235.03,7.18]
[1759766948885,0.02906537,235.15,235.06,10.73620969]
[1759766949087,98.0,235.13,235.07,3.55620969]
[1759766949290,98.0,235.13,235.07,7.38290969]
[1759766949791,98.0,235.13,235.07,3.55620969]
[1759766951093,98.0,235.13,235.08,3.8265]
[1759766951297,0.02906537,235.15,235.08,7.18]
[1759766951490,47.72,235.14,235.08,7.18]
[1759766951888,47.72,235.14,235.07,3.55620969]
[1759766952698,3.8258,235.13,235.07,3.55620969]
[1759766952900,3.8258,235.13,235.06,3.55620969]
[1759766953296,3.8261,235.11,235.06,3.55620969]
[1759766953499,3.8261,235.11,235.03,3.55620969]
[1759766953699,3.8261,235.11,234.99,11.0079]
[1759766953700,3.0359869,235.09,235.02,3.55620969]
[1759766953899,6.8623869,235.09,235.01,3.55620969]
[1759766954599,0.02964098,235.07,235.01,3.55620969]
[1759766954799,90.64,235.06,235.01,3.55620969]
[1759766955400,3.0359869,235.05,235.0,3.55620969]
[1759766955601,3.0359869,235.05,234.98,3.55620969]
[1759766955894,3.0359869,235.05,234.97,3.55620969]
[1759766956302,3.8273,235.04,234.97,3.55620969]
[1759766956702,90.64,235.06,234.97,3.55620969]
[1759766956897,103.31596,235.06,234.97,3.55620969]
[1759766957097,0.02762447,235.03,234.96,3.55620969]
[1759766957303,0.02762447,235.03,234.97,3.55620969]
[1759766957505,107.88685385,235.02,234.96,3.55620969]
[1759766957697,107.88685385,235.02,234.95,3.55620969]
[1759766957897,111.71455385,235.02,234.94,3.55620969]
[1759766958203,1.94685385,234.99,234.93,3.55620969]
[1759766958503,1.94685385,234.99,234.92,3.55620969]
[1759766959705,0.0325862,234.98,234.93,7.75]
[1759766959897,36.54,234.97,234.93,7.75]
[1759766960092,0.0325862,234.98,234.93,7.75]
[1759766960292,71.26,234.97,234.92,5.77585385]
[1759766960693,71.26,234.97,234.93,7.75]
[1759766961304,71.26,234.97,234.93,9.69685385]
[1759766961501,71.26,234.97,234.94,7.75]
[1759766961706,0.0325862,234.98,234.94,3.8288]
[1759766961899,0.0325862,234.98,234.96,7.75]
[1759766962205,0.0325862,234.98,234.97,9.69685385]
[1759766964711,0.0325862,234.98,234.97,7.75]
[1759766966206,1.94685385,235.11,235.01,7.75]
[1759766966401,1.94685385,235.08,234.96,13.25446851]
[1759766966601,1.26,235.1,234.96,13.25446851]
[1759766966602,1.94685385,235.05,234.97,3.8283]
[1759766967106,1.26,235.1,234.97,3.8283]
[1759766967307,1.94685385,235.04,234.97,3.8283]
[1759766967708,1.94685385,235.04,234.99,0.03209037]
[1759766968508,3.827,235.06,234.99,0.03209037]
[1759766968705,1.94685385,235.05,234.99,0.03209037]
[1759766968905,3.8265,235.09,234.99,0.03209037]
[1759766969109,105.82,235.04,235.0,7.75]
[1759766969303,105.82,235.03,235.0,7.75]
[1759766969503,105.82,235.03,234.99,0.03209037]
[1759766970914,105.82,235.03,234.99,7.78209037]
[1759766971411,105.82,235.03,234.99,0.03209037]
[1759766971906,3.8271,235.05,234.99,0.03209037]
[1759766972108,105.74,235.04,234.99,0.03209037]
[1759766972410,1.94685385,235.02,234.99,0.03209037]
[1759766972806,3.8277,235.01,234.99,0.03209037]
[1759766974415,3.8282,234.98,234.89,13.52645385]
[1759766974714,105.74,234.97,234.89,13.52645385]
[1759766974906,105.74,234.97,234.89,11.5796]
[1759766975110,105.74,234.97,234.89,7.75]
[1759766975915,0.0315866,234.95,234.89,7.75]
[1759766977110,0.0315866,234.95,234.91,3.8292]
[1759766977310,105.76,234.94,234.91,7.69]
[1759766977507,105.76,234.94,234.9,7.69]
[1759766977705,105.76,234.94,234.89,1.94685385]
[1759766977907,0.0315866,234.95,234.9,3.8294]
[1759766978109,21.02,234.94,234.9,3.8294]
[1759766978309,21.02,234.94,234.91,7.69]
[1759766978909,21.02,234.94,234.93,7.69]
[1759766979605,0.0315866,234.95,234.92,3.8291]
[1759766979810,21.8515866,234.95,234.92,11.5191]
[1759766980009,21.8515866,234.95,234.93,7.69]
[1759766982415,21.8515866,234.95,234.93,11.5188]
[1759766983215,0.0315866,234.95,234.94,7.69]
[1759766983809,0.0315866,234.95,234.94,9.63685385]
[1759766984512,0.0315866,234.95,234.94,10.05685385]
[1759766984716,12.45784879,235.1,234.95,7.69]
[1759766985012,1.94685385,235.07,234.98,7.69]
[1759766985213,1.94685385,235.07,235.0,3.8278]
[1759766985615,1.94685385,235.04,234.92,11.24761466]
[1759766985818,1.94685385,235.04,234.94,1.94685385]
[1759766986213,1.94685385,235.04,234.96,0.02760701]
[1759766986712,1.94685385,235.04,234.97,3.8282]
[1759766987115,5.77415385,235.04,234.96,0.02760701]
[1759766987307,1.94685385,235.04,234.96,0.02760701]
[1759766987510,99.04,235.03,234.96,0.02760701]
[1759766988210,99.04,235.03,234.96,7.46760701]
[1759766989005,1.94685385,235.07,234.98,1.94685385]
[1759766989207,12.55204811,235.1,235.02,1.94685385]
[1759766989410,311.70685385,235.13,235.02,1.94685385]
[1759766989610,105.72,235.12,235.02,9.38685385]
[1759766990406,105.72,235.12,235.05,0.02761773]
[1759766990807,118.40802738,235.12,235.05,3.85451773]
[1759766991009,118.40802738,235.12,235.05,0.02761773]
[1759766991917,1.94685385,235.1,235.05,0.02761773]
[1759766992118,1.94685385,235.07,234.97,3.55761466]
[1759766992324,1.94685385,235.03,234.95,3.55761466]
[1759766992621,69.08,235.02,234.95,3.8286]
[1759766992817,69.08,235.02,234.95,9.38685385]
[1759766993118,69.08,235.02,234.96,3.55761466]
[1759766993714,0.03086045,235.01,234.97,7.44]
[1759766993916,0.03086045,235.01,235.0,3.8278]
[1759766994319,0.03086045,235.01,235.0,11.2678]
[1759766994519,41.56,235.07,235.05,11.267]
[1759766995018,41.56,235.07,235.02,1.94685385]
[1759766995215,41.56,235.07,235.0,3.55761466]
[1759766995415,41.56,235.07,235.01,9.38685385]
[1759766995615,41.56,235.07,235.03,3.8272]
[1759766995815,41.56,235.07,235.01,9.38685385]
[1759766996010,41.56,235.07,235.02,3.55761466]
[1759766996210,309.76,235.13,235.08,3.8265]
[1759766996422,415.48,235.13,235.08,3.8265]
[1759766996823,415.48,235.13,235.08,11.2665]
[1759766997019,415.48,235.13,235.1,3.8262]
[1759766997420,105.72,235.13,235.1,1.94685385]
[1759766997621,105.72,235.13,235.09,3.55761466]
[1759766997822,105.72,235.13,235.09,10.99761466]
[1759766998018,105.72,235.13,235.11,7.44]
[1759766998221,12.64258206,235.23,235.14,3.8255]
[1759766998421,105.7,235.22,235.14,3.8255]
[1759766999425,105.7,235.22,235.16,0.03143041]
[1759766999828,1.94685385,235.18,235.16,0.03143041]
[1759767000328,3.8249,235.18,235.16,0.03143041]
[1759767000623,1.94685385,235.2,235.16,0.03143041]
[1759767001023,105.7,235.22,235.16,0.03143041]
[1759767001621,3.8246,235.2,235.16,0.03143041]
[1759767001822,105.7,235.22,235.16,0.03143041]
[1759767002028,4.72492763,235.2,235.16,0.03143041]
[1759767002224,3.8249,235.18,235.16,0.03143041]
[1759767003335,4.2449,235.18,235.16,0.03143041]
[1759767003528,3.8249,235.18,235.16,0.03143041]
[1759767003724,59.4924,235.21,235.04,7.44]
[1759767003934,64.22432763,235.18,235.04,7.44]
[1759767004726,59.502,235.17,235.02,3.8275]
[1759767004925,105.8,235.16,235.02,3.8275]
[1759767005130,0.02873752,235.13,235.02,3.8275]
[1759767005839,0.02873752,235.13,235.0,3.56478311]
[1759767006637,3.85443752,235.13,235.03,3.8273]
[1759767007038,0.02873752,235.13,235.05,3.827]
[1759767007341,105.76,235.12,235.04,7.44]
[1759767007833,105.76,235.12,235.06,3.8269]
[1759767008137,105.76,235.12,235.04,7.44]
[1759767009633,105.76,235.12,235.04,11.2672]
[1759767012639,109.5859,235.12,235.02,3.8275]
[1759767013636,3.8262,235.11,235.02,3.8275]
[1759767013836,105.76,235.12,235.0,7.44]
[1759767014441,3.8265,235.08,234.97,3.8283]
[1759767016247,3.8268,235.07,234.97,3.8283]
[1759767016834,105.64,235.06,234.96,7.99929526]
[1759767017237,0.02853841,235.04,234.96,7.99929526]
[1759767017746,0.02853841,235.04,234.98,3.8282]
[1759767018039,0.02853841,235.04,234.95,7.44]
[1759767018242,0.02853841,235.04,234.98,3.8281]
[1759767018548,105.6,235.03,234.97,7.9]
[1759767019042,105.6,235.03,234.99,11.7278]
[1759767019244,105.6,235.03,234.99,3.8278]
[1759767019547,105.6,235.03,234.97,3.8283]
[1759767020247,0.02853841,235.04,234.97,3.8283]
[1759767020447,105.74,235.03,234.99,7.9]
[1759767020848,105.74,235.03,234.94,3.56478311]
[1759767021041,105.74,235.03,234.95,11.7285]
[1759767021244,105.74,235.03,234.95,7.9]
[1759767021448,105.74,235.03,234.98,3.8281]
[1759767021651,105.74,235.03,234.98,11.7281]
[1759767022350,105.74,235.03,234.9,59.5687]
[1759767022351,105.74,235.03,234.93,11.46478311]
[1759767022550,105.74,235.03,234.93,7.9]
[1759767022842,3.8277,235.02,234.93,7.9]
[1759767023050,105.74,235.03,234.91,7.39398311]
[1759767023247,3.8278,235.0,234.9,3.56478311]
[1759767023447,3.8278,235.0,234.89,15.29438311]
[1759767023947,3.8282,234.98,234.89,11.7296]
[1759767024152,165.2774,235.03,234.89,11.7296]
[1759767024153,0.02806342,234.97,234.89,11.7296]
[1759767024354,0.02806342,234.97,234.91,3.8293]
[1759767024552,0.02806342,234.97,234.89,11.46478311]
[1759767024746,105.96,234.96,234.89,11.46478311]
[1759767025546,105.96,234.96,234.93,3.829]
[1759767025948,105.96,234.96,234.94,7.9]
[1759767026153,105.96,234.96,234.93,3.829]
[1759767026357,105.96,234.96,234.9,11.7293]
[1759767029057,105.96,234.96,234.9,7.9]
[1759767029461,105.96,234.96,234.87,7.39468311]
[1759767029755,105.96,234.96,234.89,3.8296]
[1759767030052,105.96,234.96,234.88,14.50752925]
[1759767030455,105.96,234.96,234.88,7.9]
[1759767030856,105.96,234.96,234.88,10.94274614]
[1759767031157,105.96,234.96,234.88,11.7297]
[1759767032055,0.02806342,234.97,234.87,3.56478311]
[1759767032253,0.02806342,234.97,234.91,67.4676]
[1759767032461,0.02806342,234.97,234.91,59.5676]
[1759767032655,0.02806342,234.97,234.91,70.51034614]
[1759767032855,0.02806342,234.97,234.94,3.8287]
[1759767033056,0.02806342,234.97,234.91,10.94274614]
[1759767033253,0.02806342,234.97,234.91,7.9]
[1759767033558,0.02806342,234.97,234.87,3.56478311]
[1759767033954,3.8285,234.96,234.88,3.8297]
[1759767034452,0.02806342,234.97,234.88,3.8297]
[1759767035052,0.02806342,234.97,234.9,3.8295]
[1759767035256,0.02806342,234.97,234.88,7.9]
[1759767035655,54.98,234.96,234.88,7.9]
[1759767035854,54.98,234.96,234.93,3.8288]
[1759767036053,0.02806342,234.97,234.9,7.65]
[1759767036253,105.20806342,234.97,234.9,7.65]
[1759767037049,105.20806342,234.97,234.92,3.8291]
[1759767037254,105.20806342,234.97,234.93,7.65]
[1759767038664,105.20806342,234.97,234.94,3.8288]
[1759767039059,105.20806342,234.97,234.91,67.2168]
[1759767039259,105.20806342,234.97,234.96,7.65]
[1759767039660,105.20806342,234.97,234.95,3.8285]
[1759767041363,105.20806342,234.97,234.95,11.4785]
[1759767042158,105.20806342,234.97,234.95,3.8285]
[1759767043164,0.02806342,234.97,234.95,3.8285]
[1759767043572,0.02806342,234.97,234.93,3.8289]
[1759767043862,0.02806342,234.97,234.89,3.56478311]
[1759767044661,0.02806342,234.97,234.93,3.829]
[1759767044863,0.02806342,234.97,234.89,3.56478311]
[1759767045060,0.02806342,234.97,234.88,3.56478311]
[1759767045565,0.02806342,234.97,234.9,3.8293]
[1759767045769,0.02806342,234.97,234.87,7.65]
[1759767045770,0.02806342,234.97,234.87,11.21478311]
[1759767045966,0.02806342,234.97,234.91,3.8292]
[1759767046264,105.96,234.96,234.91,11.4792]
[1759767047358,105.96,234.96,234.91,3.8292]
[1759767047562,105.96,234.96,234.88,3.8297]
[1759767047761,105.96,234.96,234.87,11.21478311]
[1759767047961,105.96,234.96,234.89,3.56478311]
[1759767048162,105.94,234.95,234.93,11.1088]
[1759767048558,0.02806342,234.97,234.94,7.28]
[1759767048559,105.94,234.96,234.94,7.28]
[1759767048770,105.94,234.96,234.94,11.1087]
[1759767049060,0.02806342,234.97,234.92,6.60752925]
[1759767049264,0.02806342,234.97,234.91,3.56478311]
[1759767049467,0.02806342,234.97,234.91,6.60752925]
[1759767049668,0.02806342,234.97,234.95,11.1085]
[1759767050266,0.02806342,234.97,234.95,7.28]
[1759767051066,0.02806342,234.97,234.96,7.28]
[1759767051569,105.94,235.02,234.96,10.84478311]
[1759767052270,105.94,235.02,235.0,3.8278]
[1759767054062,105.94,235.02,234.97,7.39298311]
[1759767054367,105.94,235.02,234.96,3.56478311]
[1759767054563,105.94,235.02,234.95,3.56478311]
[1759767054767,105.94,235.02,234.94,3.59989496]
[1759767055169,105.94,235.02,234.96,3.8284]
[1759767055769,15.78321535,235.07,234.97,3.8282]
[1759767055770,105.9,235.01,234.97,3.8282]
[1759767056870,105.9,235.01,234.97,3.8569217]
[1759767057073,105.9,235.01,234.97,0.0287217]
[1759767059471,105.9,235.01,234.97,3.6010962]
[1759767059978,105.9,235.01,234.98,3.8281]
[1759767060176,105.9,235.01,234.98,7.28]
[1759767060376,105.9,235.01,234.97,3.6010962]
[1759767060877,105.9,235.01,234.97,10.8810962]
[1759767061079,12.74046921,235.07,234.97,10.8810962]
[1759767061379,105.76,235.06,234.97,10.8810962]
[1759767061981,105.76,235.06,234.97,14.7092962]
[1759767062384,105.76,235.06,234.98,3.5723745]
[1759767062679,105.76,235.06,234.97,3.6010962]
[1759767063181,3.8273,235.04,234.97,3.6010962]
[1759767063379,3.04274614,235.05,234.97,3.6010962]
[1759767063579,3.04274614,235.01,234.97,0.0287217]
[1759767063780,3.04274614,235.01,234.93,3.5723745]
[1759767063781,105.7,235.0,234.93,3.5723745]
[1759767063971,3.04274614,234.98,234.92,3.5723745]
[1759767064371,3.04274614,234.98,234.91,3.5723745]
[1759767064582,105.7,235.0,234.91,3.5723745]
[1759767064874,12.62602624,235.07,234.91,3.5723745]
[1759767065082,3.04274614,235.04,234.92,3.5723745]
[1759767065382,105.72,235.06,234.92,3.5723745]
[1759767065383,0.02932722,234.98,234.92,3.5723745]
[1759767065575,105.68,234.97,234.92,3.5723745]
[1759767065775,105.68,234.97,234.92,10.8523745]
[1759767066180,105.68,234.97,234.92,3.5723745]
[1759767066380,105.68,234.97,234.91,3.5723745]
[1759767066985,105.68,234.97,234.9,3.5723745]
[1759767068385,105.68,234.97,234.89,3.5723745]
[1759767068582,3.8288,234.95,234.89,3.5723745]
[1759767068778,105.68,234.97,234.89,3.5723745]
[1759767068979,3.04274614,234.95,234.88,3.5723745]
[1759767069279,3.04274614,234.95,234.86,3.5723745]
[1759767069482,6.87174614,234.94,234.85,3.5723745]
[1759767069878,3.04274614,234.94,234.85,3.5723745]
[1759767071187,0.02694259,234.92,234.85,3.5723745]
[1759767071380,0.02694259,234.92,234.85,10.8523745]
[1759767071580,0.02694259,234.92,234.9,3.8294]
[1759767071789,37.28,234.95,234.91,3.5723745]
[1759767071975,37.28,234.95,234.92,7.28]
[1759767072181,37.28,234.95,234.91,3.5723745]
[1759767072387,309.84,235.04,234.92,10.8523745]
[1759767072591,105.78,235.03,234.94,10.8523745]
[1759767073379,105.78,235.03,234.96,3.8285]
[1759767073586,105.78,235.03,234.96,7.4300794]
[1759767073788,105.78,235.03,234.96,0.0292049]
[1759767075485,3.8283,234.97,234.96,0.0292049]
[1759767075685,105.8,234.97,234.96,0.0292049]
[1759767076386,109.26274614,234.97,234.96,0.0292049]
[1759767076886,109.26274614,234.97,234.88,3.57624812]
[1759767077086,108.84274614,234.97,234.88,3.57624812]
[1759767077485,105.8,234.97,234.86,3.57624812]
[1759767077682,3.8292,234.92,234.86,3.57624812]
[1759767077983,105.76,234.91,234.86,3.57624812]
[1759767078182,105.76,234.91,234.84,3.57624812]
[1759767078686,105.78896781,234.91,234.84,3.57624812]
[1759767079082,3.8295,234.9,234.83,3.57624812]
[1759767079281,107.73818366,234.91,234.82,3.57624812]
[1759767079785,3.8295,234.9,234.82,3.57624812]
[1759767080687,3.8298,234.88,234.82,3.57624812]
[1759767080883,3.8298,234.88,234.81,5.52546397]
[1759767081485,3.8301,234.87,234.79,3.57624812]
[1759767082384,3.8301,234.87,234.78,3.57624812]
[1759767082584,0.02966601,234.85,234.78,3.57624812]
[1759767082884,105.74,234.84,234.78,3.57624812]
[1759767083589,0.02966601,234.85,234.78,3.57624812]
[1759767083989,19.54,234.84,234.78,7.40764812]
[1759767084693,38.1,234.83,234.78,3.8314]
[1759767084894,38.1,234.83,234.79,3.8311]
[1759767085088,0.02966601,234.85,234.8,1.94921585]
[1759767085491,20.64,234.84,234.81,7.22]
[1759767085896,36.68,234.83,234.81,7.22]
[1759767086191,56.0,234.83,234.81,7.22]
[1759767087093,56.0,234.83,234.8,1.94921585]
[1759767087892,56.0,234.83,234.8,9.16921585]
[1759767088090,56.0,234.83,234.8,1.94921585]
[1759767088291,0.02966601,234.85,234.81,7.22]
[1759767088491,0.02966601,234.85,234.77,7.22]
[1759767088693,0.02966601,234.85,234.8,9.16921585]
[1759767088892,0.02966601,234.85,234.8,7.22]
[1759767089891,3.85996601,234.85,234.8,7.22]
[1759767090388,0.02966601,234.85,234.8,7.22]
[1759767091092,3.86006601,234.85,234.78,1.94921585]
[1759767091290,0.02966601,234.85,234.73,3.56491975]
[1759767091496,1.94921585,234.83,234.73,1.94921585]
[1759767091794,0.02966601,234.85,234.76,1.94921585]
[1759767091991,62.94921585,234.86,234.77,7.22]
[1759767091992,105.76,234.84,234.77,7.22]
[1759767092295,109.5906,234.84,234.77,7.22]
[1759767092495,0.02947165,234.83,234.77,7.22]
[1759767093091,1.9786875,234.83,234.72,7.22]
[1759767093292,1.94921585,234.8,234.72,7.22]
[1759767093698,1.94921585,234.8,234.68,3.8329]
[1759767093895,1.94921585,234.77,234.64,9.16921585]
[1759767094096,103.68,234.76,234.64,9.16921585]
[1759767094293,1.94921585,234.77,234.68,11.053]
[1759767094494,41.24,234.76,234.68,11.053]
[1759767094698,41.24,234.76,234.68,7.22]
[1759767095296,0.03053165,234.74,234.68,7.22]
[1759767095501,105.94,234.73,234.71,7.78]
[1759767095798,105.94,234.73,234.7,1.94921585]
[1759767096197,105.94,234.73,234.71,7.78]
[1759767096792,105.94,234.73,234.69,5.78211585]
[1759767097092,105.94,234.73,234.64,63.19961975]
[1759767097298,105.94,234.73,234.66,7.78]
[1759767097596,105.94,234.73,234.71,7.78]
[1759767098000,105.95053165,234.74,234.71,7.78]
[1759767099998,0.03053165,234.74,234.71,7.78]
[1759767100200,105.89053165,234.74,234.7,7.78]
[1759767100596,0.03053165,234.74,234.7,7.78]
[1759767100798,105.86,234.73,234.69,3.8328]
[1759767101391,105.86,234.73,234.7,7.78]
[1759767101799,105.86,234.73,234.69,3.8328]
[1759767101998,105.86,234.73,234.66,3.8332]
[1759767103300,105.86,234.73,234.66,5.78241585]
[1759767104197,105.86,234.73,234.67,3.8331]
[1759767106310,105.72,234.72,234.69,7.78]
[1759767106507,105.72,234.72,234.65,1.94921585]